[Event "Live Chess"]
[Site "Chess.com"]
[Date "2021.02.24"]
[Round "5"]
[White "malletpercussion"]
[Black "pjkrizzle"]
[Result "0-1"]
[CurrentPosition "8/8/5ppk/P7/8/6q1/8/5q1K w - -"]
[Timezone "UTC"]
[ECO "C02"]
[ECOUrl "https://www.chess.com/openings/French-Defense-Advance-Nimzowitsch-System"]
[UTCDate "2021.02.24"]
[UTCTime "02:31:31"]
[WhiteElo "1562"]
[BlackElo "1586"]
[TimeControl "2100+2"]
[Termination "pjkrizzle won by checkmate"]
[StartTime "02:31:31"]
[EndDate "2021.02.24"]
[EndTime "03:44:00"]
[Link "https://www.chess.com/live/game/7872848783"]

1. e4 {[%clk 0:35:00.4]} 1... e6 {[%clk 0:33:28.2]} 2. d4 {[%clk 0:34:51.9]} 2... d5 {[%clk 0:31:48]} 3. e5 {[%clk 0:34:45.7]} 3... c5 {[%clk 0:31:38.6]} 4. Nf3 {[%clk 0:34:33.2]} 4... Nc6 {[%clk 0:31:28.4]} 5. Bb5 {[%clk 0:34:17.9]} 5... Bd7 {[%clk 0:30:08.8]} 6. Bxc6 {[%clk 0:33:58.8]} 6... bxc6 {[%clk 0:27:53.6]} 7. O-O {[%clk 0:33:08.1]} 7... cxd4 {[%clk 0:27:17.4]} 8. Nxd4 {[%clk 0:33:01.7]} 8... Bc5 {[%clk 0:27:13.2]} 9. Nc3 {[%clk 0:32:49.8]} 9... Ne7 {[%clk 0:26:59.3]} 10. Bg5 {[%clk 0:32:43.1]} 10... h6 {[%clk 0:25:32.7]} 11. Bh4 {[%clk 0:32:38.8]} 11... Qc7 {[%clk 0:25:31.4]} 12. Na4 {[%clk 0:29:05.1]} 12... Bxd4 {[%clk 0:23:53]} 13. Qxd4 {[%clk 0:28:50]} 13... Nf5 {[%clk 0:23:51.4]} 14. Qg4 {[%clk 0:26:39]} 14... Qxe5 {[%clk 0:22:06]} 15. Bg3 {[%clk 0:26:23.1]} 15... Nxg3 {[%clk 0:21:53.3]} 16. fxg3 {[%clk 0:26:15.2]} 16... O-O {[%clk 0:21:04.3]} 17. Nc5 {[%clk 0:25:39.5]} 17... Qe3+ {[%clk 0:21:01.5]} 18. Kh1 {[%clk 0:25:13]} 18... Qxc5 {[%clk 0:21:00.3]} 19. c3 {[%clk 0:24:15.4]} 19... Rab8 {[%clk 0:20:21.1]} 20. Rab1 {[%clk 0:24:09.4]} 20... Rb7 {[%clk 0:20:16.4]} 21. Qf4 {[%clk 0:23:23]} 21... Qe7 {[%clk 0:19:13.9]} 22. b4 {[%clk 0:13:10.8]} 22... e5 {[%clk 0:15:50.5]} 23. Qf2 {[%clk 0:13:05.9]} 23... e4 {[%clk 0:15:38.6]} 24. Rbe1 {[%clk 0:12:52.4]} 24... Be6 {[%clk 0:15:16.9]} 25. Qd4 {[%clk 0:12:39.3]} 25... Rc8 {[%clk 0:15:02.5]} 26. a3 {[%clk 0:12:26.6]} 26... c5 {[%clk 0:14:51.4]} 27. Qe5 {[%clk 0:11:50]} 27... cxb4 {[%clk 0:14:39.9]} 28. cxb4 {[%clk 0:11:48]} 28... Rbc7 {[%clk 0:14:01.6]} 29. h3 {[%clk 0:09:49]} 29... Rc3 {[%clk 0:12:51.9]} 30. Ra1 {[%clk 0:09:48.5]} 30... f6 {[%clk 0:12:42.2]} 31. Qf4 {[%clk 0:09:18.1]} 31... a5 {[%clk 0:12:22.3]} 32. bxa5 {[%clk 0:08:56]} 32... Rxa3 {[%clk 0:12:19.7]} 33. Kh2 {[%clk 0:08:31.9]} 33... Ra8 {[%clk 0:11:57.6]} 34. Qd2 {[%clk 0:08:09.6]} 34... Qc7 {[%clk 0:11:42.4]} 35. Rxa3 {[%clk 0:07:51]} 35... Qc4 {[%clk 0:11:02.4]} 36. Re1 {[%clk 0:07:29.5]} 36... Ra6 {[%clk 0:10:44]} 37. Rc1 {[%clk 0:07:04.3]} 37... Qb5 {[%clk 0:10:17.5]} 38. Rca1 {[%clk 0:06:10.3]} 38... h5 {[%clk 0:10:02.1]} 39. Qf4 {[%clk 0:05:24.8]} 39... Qc6 {[%clk 0:09:11.3]} 40. Qb8+ {[%clk 0:04:47.5]} 40... Kh7 {[%clk 0:09:03.1]} 41. Qf8 {[%clk 0:04:32]} 41... d4 {[%clk 0:08:38.2]} 42. Qb4 {[%clk 0:03:35.8]} 42... d3 {[%clk 0:08:26.8]} 43. Rc3 {[%clk 0:03:27.5]} 43... Qa8 {[%clk 0:07:38.3]} 44. Rc5 {[%clk 0:03:15.1]} 44... h4 {[%clk 0:07:30.6]} 45. gxh4 {[%clk 0:02:57.3]} 45... e3 {[%clk 0:07:02.9]} 46. Qd4 {[%clk 0:02:13.5]} 46... Qb8+ {[%clk 0:05:25.4]} 47. Kg1 {[%clk 0:02:13.5]} 47... Bxh3 {[%clk 0:05:05.7]} 48. Qe4+ {[%clk 0:01:57]} 48... g6 {[%clk 0:04:32.4]} 49. gxh3 {[%clk 0:01:52.7]} 49... Qg3+ {[%clk 0:04:31.8]} 50. Qg2 {[%clk 0:01:53.2]} 50... Qxh4 {[%clk 0:04:13.5]} 51. Qb7+ {[%clk 0:01:52]} 51... Kh6 {[%clk 0:04:11]} 52. Qxa6 {[%clk 0:01:26.2]} 52... Qg3+ {[%clk 0:04:02.7]} 53. Kh1 {[%clk 0:01:24.2]} 53... Qxh3+ {[%clk 0:04:03.4]} 54. Kg1 {[%clk 0:01:25.1]} 54... Qg3+ {[%clk 0:03:58.6]} 55. Kh1 {[%clk 0:01:26.4]} 55... e2 {[%clk 0:03:31.4]} 56. Rcc1 {[%clk 0:00:27.6]} 56... Qh3+ {[%clk 0:03:18.6]} 57. Kg1 {[%clk 0:00:28.3]} 57... Qg3+ {[%clk 0:03:11.5]} 58. Kh1 {[%clk 0:00:28.9]} 58... Qh3+ {[%clk 0:03:11.3]} 59. Kg1 {[%clk 0:00:30.1]} 59... Qe3+ {[%clk 0:02:54.9]} 60. Kh1 {[%clk 0:00:28.5]} 60... d2 {[%clk 0:02:42.9]} 61. Re1 {[%clk 0:00:14.5]} 61... Qf3+ {[%clk 0:02:38.2]} 62. Kg1 {[%clk 0:00:14]} 62... Qg3+ {[%clk 0:02:37.7]} 63. Kh1 {[%clk 0:00:13.8]} 63... dxe1=Q+ {[%clk 0:02:37.1]} 64. Rxe1 {[%clk 0:00:14.2]} 64... Qxe1+ {[%clk 0:02:37.6]} 65. Kh2 {[%clk 0:00:14.9]} 65... Qh4+ {[%clk 0:02:36]} 66. Kg2 {[%clk 0:00:14.5]} 66... e1=Q {[%clk 0:02:35]} 67. Qf1 {[%clk 0:00:11.2]} 67... Qhg3+ {[%clk 0:02:29.4]} 68. Kh1 {[%clk 0:00:08.2]} 68... Qxf1# {[%clk 0:02:29.5]} 0-1

[Event "Live Chess"]
[Site "Chess.com"]
[Date "2021.02.24"]
[Round "5"]
[White "jah23"]
[Black "victor6688"]
[Result "1-0"]
[CurrentPosition "3r2k1/R4p1p/p5pB/8/8/7P/PP3PPK/8 b - -"]
[Timezone "UTC"]
[ECO "D00"]
[ECOUrl "https://www.chess.com/openings/Queens-Pawn-Opening-Chigorin-Variation-2...Nf6-3.Nf3-g6"]
[UTCDate "2021.02.24"]
[UTCTime "02:31:49"]
[WhiteElo "1521"]
[BlackElo "1388"]
[TimeControl "2100+2"]
[Termination "jah23 won by resignation"]
[StartTime "02:31:49"]
[EndDate "2021.02.24"]
[EndTime "03:07:53"]
[Link "https://www.chess.com/live/game/7872849123"]

1. d4 {[%clk 0:34:05.6]} 1... Nf6 {[%clk 0:34:49.8]} 2. Nf3 {[%clk 0:33:59.1]} 2... g6 {[%clk 0:34:49.7]} 3. Nc3 {[%clk 0:33:47.6]} 3... d5 {[%clk 0:34:36.5]} 4. e3 {[%clk 0:32:57]} 4... Bg7 {[%clk 0:34:28.5]} 5. Be2 {[%clk 0:32:47.4]} 5... O-O {[%clk 0:34:18.6]} 6. h3 {[%clk 0:32:46.6]} 6... Nc6 {[%clk 0:34:05.3]} 7. O-O {[%clk 0:32:28.9]} 7... Bf5 {[%clk 0:33:53.1]} 8. Bd3 {[%clk 0:31:36.8]} 8... Qd7 {[%clk 0:33:43.3]} 9. Bxf5 {[%clk 0:31:12.2]} 9... Qxf5 {[%clk 0:33:30.3]} 10. Re1 {[%clk 0:30:31]} 10... Qd7 {[%clk 0:33:04.4]} 11. e4 {[%clk 0:29:48.1]} 11... dxe4 {[%clk 0:32:24.9]} 12. Nxe4 {[%clk 0:29:38.4]} 12... Nxe4 {[%clk 0:32:21.9]} 13. Rxe4 {[%clk 0:29:37.5]} 13... Rfe8 {[%clk 0:31:59]} 14. c3 {[%clk 0:29:23.5]} 14... e5 {[%clk 0:31:33.2]} 15. d5 {[%clk 0:20:49.3]} 15... Ne7 {[%clk 0:31:02.3]} 16. c4 {[%clk 0:19:29.5]} 16... c6 {[%clk 0:30:36.3]} 17. Nxe5 {[%clk 0:17:29.9]} 17... Bxe5 {[%clk 0:30:30.2]} 18. Rxe5 {[%clk 0:17:29.1]} 18... cxd5 {[%clk 0:30:14.7]} 19. cxd5 {[%clk 0:17:08.8]} 19... Rad8 {[%clk 0:29:53.8]} 20. d6 {[%clk 0:11:05.6]} 20... Qxd6 {[%clk 0:29:20.7]} 21. Qxd6 {[%clk 0:11:04.8]} 21... Rxd6 {[%clk 0:29:21.5]} 22. Bf4 {[%clk 0:10:15.9]} 22... Rdd8 {[%clk 0:29:10.8]} 23. Rae1 {[%clk 0:09:39.5]} 23... Kf8 {[%clk 0:28:41]} 24. Bh6+ {[%clk 0:09:15.4]} 24... Kg8 {[%clk 0:28:36]} 25. Rxe7 {[%clk 0:09:10.2]} 25... Rxe7 {[%clk 0:28:35.9]} 26. Rxe7 {[%clk 0:09:10.2]} 26... Rd1+ {[%clk 0:28:35.6]} 27. Kh2 {[%clk 0:09:08.3]} 27... Rd8 {[%clk 0:28:28.8]} 28. Rxb7 {[%clk 0:08:54.4]} 28... a6 {[%clk 0:28:17]} 29. Ra7 {[%clk 0:08:37.8]} 1-0

[Event "Live Chess"]
[Site "Chess.com"]
[Date "2021.02.24"]
[Round "5"]
[White "swimgrass"]
[Black "dum2020arEEEWS"]
[Result "1/2-1/2"]
[CurrentPosition "2b5/6p1/4p3/p1NpPkPp/1p1P3P/1P3K2/P7/8 w - -"]
[Timezone "UTC"]
[ECO "B22"]
[ECOUrl "https://www.chess.com/openings/Sicilian-Defense-Alapin-Variation-2...Nc6-3.d4"]
[UTCDate "2021.02.24"]
[UTCTime "02:31:47"]
[WhiteElo "1480"]
[BlackElo "1444"]
[TimeControl "2100+2"]
[Termination "Game drawn by repetition"]
[StartTime "02:31:47"]
[EndDate "2021.02.24"]
[EndTime "02:58:30"]
[Link "https://www.chess.com/live/game/7872849437"]

1. e4 {[%clk 0:34:05.8]} 1... c5 {[%clk 0:34:59.5]} 2. c3 {[%clk 0:34:06]} 2... Nc6 {[%clk 0:34:56.6]} 3. d4 {[%clk 0:34:03.3]} 3... d6 {[%clk 0:34:41]} 4. Bb5 {[%clk 0:34:01.9]} 4... Bd7 {[%clk 0:34:27.4]} 5. Nf3 {[%clk 0:33:04.2]} 5... a6 {[%clk 0:34:14.2]} 6. Bc4 {[%clk 0:32:30.4]} 6... b5 {[%clk 0:34:05.2]} 7. Bd5 {[%clk 0:32:24.3]} 7... e6 {[%clk 0:34:04.4]} 8. Bxc6 {[%clk 0:32:17.7]} 8... Bxc6 {[%clk 0:34:03.8]} 9. Bg5 {[%clk 0:31:32.6]} 9... Be7 {[%clk 0:33:57.6]} 10. Bxe7 {[%clk 0:30:55.9]} 10... Nxe7 {[%clk 0:33:53.9]} 11. Nbd2 {[%clk 0:30:52.7]} 11... O-O {[%clk 0:33:53.1]} 12. O-O {[%clk 0:30:17]} 12... Ng6 {[%clk 0:33:17.6]} 13. Re1 {[%clk 0:29:57.1]} 13... Qe7 {[%clk 0:32:11.5]} 14. b3 {[%clk 0:29:41.5]} 14... d5 {[%clk 0:29:56.7]} 15. e5 {[%clk 0:29:05.4]} 15... b4 {[%clk 0:29:41.8]} 16. cxb4 {[%clk 0:28:30.5]} 16... cxb4 {[%clk 0:29:39.6]} 17. Rc1 {[%clk 0:28:28]} 17... Bb5 {[%clk 0:29:18.1]} 18. Nf1 {[%clk 0:27:37.5]} 18... Rfc8 {[%clk 0:29:14.5]} 19. Qd2 {[%clk 0:27:31.4]} 19... h6 {[%clk 0:28:35.7]} 20. Ne3 {[%clk 0:27:17.4]} 20... Qd7 {[%clk 0:28:24.6]} 21. g3 {[%clk 0:26:06.9]} 21... a5 {[%clk 0:28:11]} 22. Kg2 {[%clk 0:25:18.3]} 22... Rc6 {[%clk 0:27:26.7]} 23. Rxc6 {[%clk 0:24:48.1]} 23... Qxc6 {[%clk 0:27:25.6]} 24. Rc1 {[%clk 0:24:45.1]} 24... Qb7 {[%clk 0:27:24.9]} 25. Rc5 {[%clk 0:24:37.9]} 25... Rc8 {[%clk 0:27:20.6]} 26. Qc2 {[%clk 0:24:33.2]} 26... Rxc5 {[%clk 0:27:20.6]} 27. Qxc5 {[%clk 0:24:32.7]} 27... Qc6 {[%clk 0:27:15.1]} 28. Qxc6 {[%clk 0:24:13.2]} 28... Bxc6 {[%clk 0:27:14.5]} 29. Ne1 {[%clk 0:24:12.4]} 29... f6 {[%clk 0:27:10.3]} 30. f4 {[%clk 0:24:11.4]} 30... fxe5 {[%clk 0:27:02.7]} 31. fxe5 {[%clk 0:24:09]} 31... Ne7 {[%clk 0:27:02.3]} 32. Nd3 {[%clk 0:24:08]} 32... Bd7 {[%clk 0:26:36.5]} 33. Nc5 {[%clk 0:23:31.6]} 33... Bc8 {[%clk 0:26:35.9]} 34. Kf3 {[%clk 0:23:18.1]} 34... Kf7 {[%clk 0:26:35]} 35. h4 {[%clk 0:23:05.5]} 35... Kg6 {[%clk 0:26:32.8]} 36. g4 {[%clk 0:23:04.1]} 36... h5 {[%clk 0:26:21.8]} 37. g5 {[%clk 0:23:01.8]} 37... Nf5 {[%clk 0:26:12.9]} 38. Nxf5 {[%clk 0:23:00.8]} 38... Kxf5 {[%clk 0:26:13.8]} 39. Nd3 {[%clk 0:22:48.8]} 39... Ba6 {[%clk 0:25:37.6]} 40. Nc5 {[%clk 0:21:08.1]} 40... Bc8 {[%clk 0:25:33.7]} 41. Nd3 {[%clk 0:21:06.7]} 41... Ba6 {[%clk 0:25:23.4]} 42. Nc5 {[%clk 0:21:02.9]} 42... Bc8 {[%clk 0:25:23.3]} 1/2-1/2

[Event "Live Chess"]
[Site "Chess.com"]
[Date "2021.02.24"]
[Round "5"]
[White "dribbler23"]
[Black "nmbrown2"]
[Result "1-0"]
[CurrentPosition "8/8/k7/6R1/5K2/r4P1P/6P1/8 b - -"]
[Timezone "UTC"]
[ECO "B33"]
[ECOUrl "https://www.chess.com/openings/Sicilian-Defense-Open-3...cxd4-4.Nxd4"]
[UTCDate "2021.02.24"]
[UTCTime "02:31:59"]
[WhiteElo "1540"]
[BlackElo "1436"]
[TimeControl "2100+2"]
[Termination "dribbler23 won by resignation"]
[StartTime "02:31:59"]
[EndDate "2021.02.24"]
[EndTime "03:31:16"]
[Link "https://www.chess.com/live/game/7872849815"]

1. e4 {[%clk 0:34:53.1]} 1... c5 {[%clk 0:34:58.5]} 2. Nf3 {[%clk 0:34:52]} 2... Nc6 {[%clk 0:34:52.4]} 3. d4 {[%clk 0:34:51.5]} 3... cxd4 {[%clk 0:34:51.4]} 4. Nxd4 {[%clk 0:34:52.2]} 4... d6 {[%clk 0:34:50.7]} 5. Bb5 {[%clk 0:34:48.7]} 5... Bd7 {[%clk 0:34:43.3]} 6. Be3 {[%clk 0:34:36.2]} 6... Nf6 {[%clk 0:34:13.5]} 7. Nc3 {[%clk 0:34:31.2]} 7... e6 {[%clk 0:34:02.1]} 8. f3 {[%clk 0:34:29.2]} 8... Be7 {[%clk 0:34:00.7]} 9. O-O {[%clk 0:34:12.9]} 9... O-O {[%clk 0:33:27.9]} 10. Bd3 {[%clk 0:33:44.2]} 10... d5 {[%clk 0:31:28]} 11. Nxc6 {[%clk 0:32:50.2]} 11... Bxc6 {[%clk 0:31:19.8]} 12. e5 {[%clk 0:32:37.1]} 12... Ne8 {[%clk 0:30:44.4]} 13. Bd4 {[%clk 0:31:54.6]} 13... f6 {[%clk 0:30:34.7]} 14. Qe1 {[%clk 0:31:14.5]} 14... fxe5 {[%clk 0:30:27.6]} 15. Qxe5 {[%clk 0:30:17.2]} 15... Bd7 {[%clk 0:28:47.4]} 16. Qh5 {[%clk 0:29:09.7]} 16... h6 {[%clk 0:28:03.7]} 17. Qg6 {[%clk 0:27:56.7]} 17... Bf6 {[%clk 0:25:48.1]} 18. Qh7+ {[%clk 0:27:38.4]} 18... Kf7 {[%clk 0:25:41.4]} 19. Bg6+ {[%clk 0:27:12.7]} 19... Ke7 {[%clk 0:25:29.5]} 20. Bc5+ {[%clk 0:27:11.3]} 20... Nd6 {[%clk 0:25:21.1]} 21. Nb5 {[%clk 0:25:05.1]} 21... Bxb5 {[%clk 0:25:09.1]} 22. Rfe1 {[%clk 0:23:52.8]} 22... Rh8 {[%clk 0:24:49]} 23. Rxe6+ {[%clk 0:23:43.1]} 23... Kxe6 {[%clk 0:24:12.2]} 24. Re1+ {[%clk 0:23:08.7]} 24... Kd7 {[%clk 0:23:49.8]} 25. Bf5+ {[%clk 0:22:16.5]} 25... Kc7 {[%clk 0:23:37.4]} 26. Qg6 {[%clk 0:20:55.7]} 26... Be8 {[%clk 0:22:28.1]} 27. Qg4 {[%clk 0:19:22.1]} 27... Nxf5 {[%clk 0:21:39.6]} 28. Qxf5 {[%clk 0:17:33.4]} 28... Qd7 {[%clk 0:21:29.1]} 29. Qf4+ {[%clk 0:17:22.1]} 29... Kc8 {[%clk 0:21:19.5]} 30. Bd6 {[%clk 0:16:13.3]} 30... g5 {[%clk 0:21:01.7]} 31. Qxf6 {[%clk 0:15:48.4]} 31... Rg8 {[%clk 0:17:44.3]} 32. Re7 {[%clk 0:15:09.7]} 32... Rg6 {[%clk 0:16:23.8]} 33. Qc3+ {[%clk 0:14:10.2]} 33... Qc6 {[%clk 0:15:46.9]} 34. Rxe8+ {[%clk 0:12:47]} 34... Kd7 {[%clk 0:15:41.7]} 35. Qxc6+ {[%clk 0:12:15.8]} 35... bxc6 {[%clk 0:15:34.4]} 36. Rxa8 {[%clk 0:12:12.1]} 36... Kxd6 {[%clk 0:15:21]} 37. Rxa7 {[%clk 0:12:10.4]} 37... Re6 {[%clk 0:15:20.2]} 38. Kf2 {[%clk 0:12:05.3]} 38... Rf6 {[%clk 0:14:38]} 39. h3 {[%clk 0:11:24.9]} 39... Rf4 {[%clk 0:14:08.5]} 40. Rh7 {[%clk 0:10:38.6]} 40... Rf6 {[%clk 0:13:56.2]} 41. Kg3 {[%clk 0:10:24.8]} 41... Re6 {[%clk 0:13:45.4]} 42. a4 {[%clk 0:10:11.2]} 42... Kc5 {[%clk 0:13:38.7]} 43. Rb7 {[%clk 0:09:46.5]} 43... Re2 {[%clk 0:13:28.8]} 44. Rb3 {[%clk 0:08:53.5]} 44... Rxc2 {[%clk 0:13:15.1]} 45. a5 {[%clk 0:08:42.3]} 45... Re2 {[%clk 0:13:04.7]} 46. Rb7 {[%clk 0:08:10.7]} 46... Re8 {[%clk 0:12:25.8]} 47. b4+ {[%clk 0:07:46.6]} 47... Kc4 {[%clk 0:12:20.2]} 48. Rb6 {[%clk 0:07:26.5]} 48... Ra8 {[%clk 0:11:50.3]} 49. a6 {[%clk 0:07:12.6]} 49... c5 {[%clk 0:11:37]} 50. bxc5 {[%clk 0:06:42.7]} 50... Kxc5 {[%clk 0:11:33.6]} 51. Rxh6 {[%clk 0:06:43.7]} 51... d4 {[%clk 0:11:30.8]} 52. Kf2 {[%clk 0:06:42.3]} 52... Kb5 {[%clk 0:11:11]} 53. Ke2 {[%clk 0:06:29.2]} 53... Kc4 {[%clk 0:11:02.5]} 54. Kd2 {[%clk 0:06:13.3]} 54... d3 {[%clk 0:10:45.5]} 55. Rd6 {[%clk 0:06:09.4]} 55... Rb8 {[%clk 0:10:19.2]} 56. Rxd3 {[%clk 0:05:40.3]} 56... Rb2+ {[%clk 0:10:16.4]} 57. Ke3 {[%clk 0:05:39.9]} 57... Ra2 {[%clk 0:10:11]} 58. Rd4+ {[%clk 0:05:34.3]} 58... Kb5 {[%clk 0:10:00.3]} 59. Rg4 {[%clk 0:05:32.3]} 59... Kxa6 {[%clk 0:09:56.6]} 60. Rxg5 {[%clk 0:05:31.8]} 60... Ra3+ {[%clk 0:09:55.7]} 61. Kf4 {[%clk 0:05:31.8]} 1-0

[Event "Live Chess"]
[Site "Chess.com"]
[Date "2021.02.24"]
[Round "5"]
[White "andrewaballantyne"]
[Black "vincitore51745"]
[Result "1-0"]
[CurrentPosition "8/pp2R1kp/3R1np1/2p5/8/8/PP3PPP/6K1 b - -"]
[Timezone "UTC"]
[ECO "C00"]
[ECOUrl "https://www.chess.com/openings/French-Defense-Franco-Sicilian-Defense"]
[UTCDate "2021.02.24"]
[UTCTime "02:32:03"]
[WhiteElo "1360"]
[BlackElo "1098"]
[TimeControl "2100+2"]
[Termination "andrewaballantyne won by resignation"]
[StartTime "02:32:03"]
[EndDate "2021.02.24"]
[EndTime "03:17:29"]
[Link "https://www.chess.com/live/game/7872851119"]

1. e4 {[%clk 0:34:59.9]} 1... c5 {[%clk 0:34:49.6]} 2. d4 {[%clk 0:34:59]} 2... e6 {[%clk 0:34:29.8]} 3. Nf3 {[%clk 0:34:25.8]} 3... Nf6 {[%clk 0:34:16.6]} 4. e5 {[%clk 0:32:32.2]} 4... Nd5 {[%clk 0:33:23.6]} 5. c4 {[%clk 0:31:36.8]} 5... Nb6 {[%clk 0:32:33.5]} 6. d5 {[%clk 0:29:34.4]} 6... d6 {[%clk 0:31:33.4]} 7. Nc3 {[%clk 0:27:51.7]} 7... exd5 {[%clk 0:30:16.8]} 8. cxd5 {[%clk 0:27:49.2]} 8... Bg4 {[%clk 0:29:50.2]} 9. exd6 {[%clk 0:25:57.6]} 9... Bxd6 {[%clk 0:29:34]} 10. Be2 {[%clk 0:25:13.6]} 10... O-O {[%clk 0:29:20.4]} 11. O-O {[%clk 0:25:10.7]} 11... N8d7 {[%clk 0:29:04.9]} 12. Nb5 {[%clk 0:24:34.3]} 12... Be7 {[%clk 0:26:02.8]} 13. Bf4 {[%clk 0:21:42.4]} 13... Nf6 {[%clk 0:25:23.2]} 14. d6 {[%clk 0:20:56.3]} 14... Bxd6 {[%clk 0:21:15.9]} 15. Bxd6 {[%clk 0:20:32.5]} 15... Re8 {[%clk 0:20:58.9]} 16. Nc7 {[%clk 0:18:44.4]} 16... Rc8 {[%clk 0:18:20.5]} 17. Nxe8 {[%clk 0:17:46.8]} 17... Qxe8 {[%clk 0:18:14]} 18. Re1 {[%clk 0:16:44.9]} 18... Nbd5 {[%clk 0:17:49.6]} 19. Bc4 {[%clk 0:15:56.3]} 19... Qc6 {[%clk 0:17:30.1]} 20. Ne5 {[%clk 0:13:39.1]} 20... Bxd1 {[%clk 0:16:57.4]} 21. Nxc6 {[%clk 0:13:35.7]} 21... Rxc6 {[%clk 0:16:55.9]} 22. Bxd5 {[%clk 0:13:22.7]} 22... Rxd6 {[%clk 0:16:54]} 23. Raxd1 {[%clk 0:13:21.3]} 23... g6 {[%clk 0:15:09.3]} 24. Bxf7+ {[%clk 0:12:52]} 24... Kxf7 {[%clk 0:14:39]} 25. Rxd6 {[%clk 0:12:48.4]} 25... Kg7 {[%clk 0:14:03.7]} 26. Re7+ {[%clk 0:12:32.3]} 1-0

[Event "Live Chess"]
[Site "Chess.com"]
[Date "2021.02.24"]
[Round "5"]
[White "adichi"]
[Black "ComfyQueso"]
[Result "1-0"]
[CurrentPosition "1r4k1/2p3q1/1pP1R1pp/p2p2P1/P2P1P2/3Q2K1/P7/1R6 b - -"]
[Timezone "UTC"]
[ECO "D00"]
[ECOUrl "https://www.chess.com/openings/Queens-Pawn-Opening-Accelerated-London-System"]
[UTCDate "2021.02.24"]
[UTCTime "02:32:09"]
[WhiteElo "1414"]
[BlackElo "1074"]
[TimeControl "2100+2"]
[Termination "adichi won by resignation"]
[StartTime "02:32:09"]
[EndDate "2021.02.24"]
[EndTime "03:13:19"]
[Link "https://www.chess.com/live/game/7872851581"]

1. d4 {[%clk 0:34:59.7]} 1... d5 {[%clk 0:34:59.6]} 2. Bf4 {[%clk 0:34:57]} 2... Nc6 {[%clk 0:34:44.5]} 3. e3 {[%clk 0:34:56.5]} 3... Bf5 {[%clk 0:34:44]} 4. Nf3 {[%clk 0:32:35.1]} 4... Nb4 {[%clk 0:34:36.1]} 5. Na3 {[%clk 0:32:28.6]} 5... e6 {[%clk 0:34:10.9]} 6. c3 {[%clk 0:32:24.1]} 6... Nc6 {[%clk 0:34:10.6]} 7. Bd3 {[%clk 0:32:19.5]} 7... Bxd3 {[%clk 0:34:06.1]} 8. Qxd3 {[%clk 0:32:17.1]} 8... Bxa3 {[%clk 0:34:05.6]} 9. bxa3 {[%clk 0:32:13]} 9... Nf6 {[%clk 0:34:01.9]} 10. Rb1 {[%clk 0:31:44.4]} 10... Rb8 {[%clk 0:33:42.9]} 11. h4 {[%clk 0:31:15.7]} 11... Qe7 {[%clk 0:33:29.2]} 12. c4 {[%clk 0:30:30.3]} 12... O-O {[%clk 0:32:22.2]} 13. Ne5 {[%clk 0:29:44.4]} 13... Qd6 {[%clk 0:31:49.7]} 14. c5 {[%clk 0:28:04.7]} 14... Nxe5 {[%clk 0:31:40.1]} 15. Bxe5 {[%clk 0:26:57.5]} 15... Qe7 {[%clk 0:31:30.9]} 16. f3 {[%clk 0:24:41.5]} 16... Rfd8 {[%clk 0:29:38.1]} 17. g4 {[%clk 0:20:40]} 17... b6 {[%clk 0:29:20.1]} 18. c6 {[%clk 0:19:23.6]} 18... a5 {[%clk 0:27:35]} 19. a4 {[%clk 0:17:19.2]} 19... g6 {[%clk 0:26:33.6]} 20. Kf2 {[%clk 0:16:04]} 20... Kg7 {[%clk 0:25:15.7]} 21. g5 {[%clk 0:15:23]} 21... Kg8 {[%clk 0:24:50.9]} 22. Bxf6 {[%clk 0:13:29.8]} 22... Qd6 {[%clk 0:24:48.2]} 23. Bxd8 {[%clk 0:13:09.7]} 23... Qxd8 {[%clk 0:24:48]} 24. Qa3 {[%clk 0:12:21.5]} 24... Qe8 {[%clk 0:24:44.6]} 25. Rhc1 {[%clk 0:11:41.9]} 25... Qd8 {[%clk 0:24:18.6]} 26. Qd3 {[%clk 0:10:57.5]} 26... f6 {[%clk 0:24:09.1]} 27. f4 {[%clk 0:10:35]} 27... fxg5 {[%clk 0:24:05.8]} 28. hxg5 {[%clk 0:10:31.7]} 28... Qf8 {[%clk 0:24:03.7]} 29. Kg3 {[%clk 0:09:55.2]} 29... Qf7 {[%clk 0:24:01.9]} 30. Re1 {[%clk 0:09:13.2]} 30... Qg7 {[%clk 0:23:57.6]} 31. e4 {[%clk 0:08:47.8]} 31... h6 {[%clk 0:23:42.9]} 32. exd5 {[%clk 0:08:18.7]} 32... exd5 {[%clk 0:23:40.3]} 33. Re6 {[%clk 0:07:49.9]} 1-0

[Event "Live Chess"]
[Site "Chess.com"]
[Date "2021.02.24"]
[Round "5"]
[White "Charvii"]
[Black "Bruce_Hedman"]
[Result "0-1"]
[CurrentPosition "4r1k1/5ppp/p7/1p6/8/P4N2/1PP1qPPP/5KR1 w - -"]
[Timezone "UTC"]
[ECO "C01"]
[ECOUrl "https://www.chess.com/openings/French-Defense-Exchange-Variation-3...exd5-4.Nc3"]
[UTCDate "2021.02.24"]
[UTCTime "02:32:10"]
[WhiteElo "1422"]
[BlackElo "1396"]
[TimeControl "2100+2"]
[Termination "Bruce_Hedman won by checkmate"]
[StartTime "02:32:10"]
[EndDate "2021.02.24"]
[EndTime "02:55:50"]
[Link "https://www.chess.com/live/game/7872852705"]

1. e4 {[%clk 0:34:55.6]} 1... e6 {[%clk 0:34:57.7]} 2. d4 {[%clk 0:34:52.6]} 2... d5 {[%clk 0:34:55.6]} 3. exd5 {[%clk 0:34:51.6]} 3... exd5 {[%clk 0:34:54.1]} 4. Nc3 {[%clk 0:34:48.6]} 4... Nc6 {[%clk 0:34:50.7]} 5. Nf3 {[%clk 0:34:46]} 5... Nf6 {[%clk 0:34:49.8]} 6. Bg5 {[%clk 0:34:44.3]} 6... Be7 {[%clk 0:34:45.3]} 7. Bb5 {[%clk 0:34:42.3]} 7... O-O {[%clk 0:34:41.6]} 8. a3 {[%clk 0:34:24.2]} 8... a6 {[%clk 0:34:39.5]} 9. Ba4 {[%clk 0:34:23.6]} 9... b5 {[%clk 0:34:34.6]} 10. Bb3 {[%clk 0:34:23.2]} 10... Bb7 {[%clk 0:33:17]} 11. Bxf6 {[%clk 0:34:08.2]} 11... Bxf6 {[%clk 0:33:13.1]} 12. Nxd5 {[%clk 0:34:02.6]} 12... Nxd4 {[%clk 0:30:14.1]} 13. Nxf6+ {[%clk 0:33:48.3]} 13... Qxf6 {[%clk 0:28:38.4]} 14. Qxd4 {[%clk 0:33:17]} 14... Rfe8+ {[%clk 0:27:24.9]} 15. Kf1 {[%clk 0:32:59.5]} 15... Qg6 {[%clk 0:25:08.8]} 16. Rg1 {[%clk 0:32:00.2]} 16... Rad8 {[%clk 0:24:37.5]} 17. Qf4 {[%clk 0:31:43]} 17... Bd5 {[%clk 0:23:22.7]} 18. Bxd5 {[%clk 0:30:55.7]} 18... Rxd5 {[%clk 0:23:18.4]} 19. Qxc7 {[%clk 0:30:44.9]} 19... Qe4 {[%clk 0:21:38.6]} 20. Re1 {[%clk 0:30:10.6]} 20... Rd1 {[%clk 0:20:53]} 21. Qc3 {[%clk 0:29:54.8]} 21... Rxe1+ {[%clk 0:19:34.9]} 22. Qxe1 {[%clk 0:29:39.3]} 22... Qc4+ {[%clk 0:19:18.8]} 23. Qe2 {[%clk 0:29:28.7]} 23... Qxe2# {[%clk 0:18:35.5]} 0-1